fUSD/lending_fUSD_20250209
["ID","MTS","AMOUNT","RATE_DAILY","PERIOD"]
[352473384,1739130639690,-622.63,0.00010136,2]
[352473385,1739130639699,-617.22,0.00010136,2]
[352473386,1739130639708,-500.0,0.00010136,2]
[352473387,1739130639718,-500.0,0.00010136,2]
[352473388,1739130639727,-849.26,0.00010136,2]
[352473389,1739130639738,-500.0,0.00010136,2]
[352473390,1739130639748,-980.02,0.00010136,2]
[352473392,1739130639758,-500.0,0.00010136,2]
[352473394,1739130639769,-500.0,0.00010136,2]
[352473396,1739130639779,-500.0,0.00010136,2]
[352473398,1739130639788,-500.0,0.00010136,2]
[352473400,1739130639797,-500.0,0.00010136,2]
[352473402,1739130639805,-254.17,0.00010136,2]
[352473404,1739130639816,-1303.93,0.00010136,2]
[352473406,1739130639826,-677.21,0.00010136,2]
[352473408,1739130639836,-500.0,0.00010136,2]
[352473410,1739130639847,-500.0,0.00010136,2]
[352473412,1739130639857,-621.58,0.00010136,2]
[352473414,1739130639866,-500.0,0.00010136,2]
[352473416,1739130639875,-500.0,0.00010136,2]
[352473418,1739130639884,-500.0,0.00010136,2]
[352473420,1739130639895,-540.57,0.00010136,2]
[352473421,1739130639905,-500.0,0.00010136,2]
[352473423,1739130639914,-500.0,0.00010136,2]
[352473425,1739130639923,-571.54,0.00010136,2]
[352473427,1739130639933,-500.0,0.00010136,2]
[352473429,1739130639942,-584.15,0.00010136,2]
[352473431,1739130639951,-500.0,0.00010136,2]
[352473433,1739130639961,-500.0,0.00010136,2]
[352473435,1739130639971,-500.0,0.00010136,2]
[352473437,1739130639980,-642.34,0.00010136,2]
[352473439,1739130639989,-616.73,0.00010136,2]
[352473441,1739130639998,-1219.09,0.00010136,2]
[352473443,1739130640007,-635.9,0.00010136,2]
[352473445,1739130640017,-500.0,0.00010136,2]
[352473447,1739130640026,-500.0,0.00010136,2]
[352473449,1739130640038,-500.0,0.00010136,2]
[352473452,1739130640052,-745.03,0.00010136,2]
[352473454,1739130640065,-500.0,0.00010136,2]
[352473456,1739130640078,-500.0,0.00010136,2]
[352473459,1739130640089,-500.0,0.00010136,2]
[352473460,1739130640100,-500.0,0.00010136,2]
[352473462,1739130640111,-500.0,0.00010136,2]
[352473465,1739130640123,-500.0,0.00010136,2]
[352473467,1739130640135,-500.0,0.00010136,2]
[352473470,1739130640146,-500.0,0.00010136,2]
[352473472,1739130640158,-630.33,0.00010136,2]
[352473475,1739130640171,-544.57,0.00010136,2]
[352473477,1739130640183,-500.0,0.00010136,2]
[352473479,1739130640195,-2246.07,0.00010136,2]
[352473482,1739130640208,-500.0,0.00010136,2]
[352473484,1739130640220,-500.0,0.00010136,2]
[352473486,1739130640232,-685.95,0.00010136,2]
[352473488,1739130640242,-500.0,0.00010136,2]
[352473490,1739130640252,-500.0,0.00010136,2]
[352473492,1739130640264,-500.0,0.00010136,2]
[352473494,1739130640276,-500.0,0.00010136,2]
[352473497,1739130640287,-500.0,0.00010136,2]
[352473499,1739130640299,-500.0,0.00010136,2]
[352473501,1739130640311,-500.0,0.00010136,2]
[352473503,1739130640323,-543.13,0.00010136,2]
[352473505,1739130640334,-586.33,0.00010136,2]
[352473508,1739130640346,-199.87,0.00010137,2]
[352473510,1739130640359,-291.25,0.00010137,2]
[352473512,1739130640371,-181.93074835,0.00010146,2]
[352473514,1739130640383,-176.33,0.00010258,2]
[352473516,1739130640395,-1235.8410088,0.00010265,2]
[352473518,1739130640406,-491.901455,0.00010266,2]
[352473520,1739130640417,-500.0,0.00010272,2]
[352473523,1739130640430,-187.94,0.00010272,2]
[352473525,1739130640441,-500.0,0.00010272,2]
[352473527,1739130640453,-500.0,0.00010272,2]
[352473529,1739130640465,-500.0,0.00010272,2]
[352473531,1739130640482,-500.0,0.00010272,2]
[352473534,1739130640494,-500.0,0.00010272,2]
[352473536,1739130640505,-500.0,0.00010272,2]
[352473538,1739130640517,-500.0,0.00010272,2]
[352473540,1739130640528,-642.43,0.00010272,2]
[352473542,1739130640540,-500.0,0.00010272,2]
[352473544,1739130640552,-500.0,0.00010272,2]
[352473545,1739130640563,-528.97,0.00010272,2]
[352473546,1739130640574,-354.64,0.00010272,2]
[352473547,1739130640586,-500.0,0.00010272,2]
[352473548,1739130640597,-500.0,0.00010272,2]
[352473549,1739130640608,-602.85,0.00010272,2]
[352473550,1739130640619,-500.0,0.00010272,2]
[352473551,1739130640631,-500.0,0.00010272,2]
[352473552,1739130640642,-574.86,0.00010272,2]
[352473554,1739130640657,-406.02686,0.00010272,2]
[352473557,1739130640676,-506.21,0.00010272,2]
[352473559,1739130640688,-492.9,0.00010272,2]
[352473561,1739130640699,-500.0,0.00010272,2]
[352473563,1739130640710,-500.0,0.00010272,2]
[352473564,1739130640722,-500.0,0.00010272,2]
[352473566,1739130640733,-190.98368663,0.00010272,2]
[352473567,1739130640745,-400.07068,0.00010273,2]
[352473568,1739130640757,-500.0,0.00010273,2]
[352473569,1739130640770,-275.56,0.00010273,2]
[352473570,1739130640783,-500.0,0.00010273,2]
[352473571,1739130640794,-553.46,0.00010273,2]
[352473572,1739130640805,-957.84,0.00010273,2]
[352473573,1739130640815,-500.0,0.00010273,2]
[352473574,1739130640826,-500.0,0.00010273,2]
[352473575,1739130640836,-500.0,0.00010273,2]
[352473576,1739130640847,-500.0,0.00010273,2]
[352473577,1739130640858,-500.0,0.00010273,2]
[352473578,1739130640869,-500.0,0.00010273,2]
[352473579,1739130640881,-620.88,0.00010273,2]
[352473580,1739130640895,-500.0,0.00010273,2]
[352473581,1739130640905,-722.33,0.00010273,2]
[352473582,1739130640918,-500.0,0.00010273,2]
[352473583,1739130640931,-500.0,0.00010273,2]
[352473584,1739130640942,-500.0,0.00010273,2]
[352473585,1739130640952,-500.0,0.00010273,2]
[352473586,1739130640963,-500.0,0.00010273,2]
[352473587,1739130640974,-500.0,0.00010273,2]
[352473588,1739130640984,-500.0,0.00010273,2]
[352473589,1739130640996,-500.0,0.00010273,2]
[352473590,1739130641007,-500.0,0.00010273,2]
[352473591,1739130641018,-500.0,0.00010273,2]
[352473592,1739130641028,-500.0,0.00010273,2]
[352473593,1739130641040,-500.0,0.00010273,2]
[352473594,1739130641051,-500.0,0.00010273,2]
[352473595,1739130641062,-500.0,0.00010273,2]
[352473596,1739130641072,-500.0,0.00010273,2]
[352473598,1739130641083,-500.0,0.00010273,2]
[352473600,1739130641093,-500.0,0.00010273,2]
[352473602,1739130641104,-500.0,0.00010273,2]
[352473604,1739130641116,-500.0,0.00010273,2]
[352473606,1739130641127,-500.0,0.00010273,2]
[352473608,1739130641138,-714.58,0.00010273,2]
[352473610,1739130641149,-500.0,0.00010273,2]
[352473613,1739130641160,-378.47,0.00010273,2]
[352473615,1739130641173,-500.0,0.00010273,2]
[352473617,1739130641185,-500.0,0.00010273,2]
[352473619,1739130641196,-608.5,0.00010273,2]
[352473621,1739130641207,-399.98,0.00010273,2]
[352473623,1739130641218,-500.0,0.00010273,2]
[352473626,1739130641229,-500.0,0.00010273,2]
[352473628,1739130641240,-500.0,0.00010273,2]
[352473630,1739130641251,-500.0,0.00010273,2]
[352473632,1739130641262,-500.0,0.00010273,2]
[352473634,1739130641273,-500.0,0.00010273,2]
[352473636,1739130641285,-500.0,0.00010273,2]
[352473638,1739130641296,-500.0,0.00010273,2]
[352473640,1739130641307,-500.0,0.00010273,2]
[352473642,1739130641318,-500.0,0.00010273,2]
[352473644,1739130641329,-381.451289,0.00010273,2]
[352473646,1739130641340,-631.5,0.00010273,2]
[352473649,1739130641351,-905.78,0.00010273,2]
[352473651,1739130641361,-500.0,0.00010273,2]
[352473653,1739130641372,-500.0,0.00010273,2]
[352473655,1739130641383,-500.0,0.00010273,2]
[352473657,1739130641393,-500.0,0.00010273,2]
[352473659,1739130641404,-1000.0,0.00010273,2]
[352473661,1739130641416,-500.0,0.00010273,2]
[352473663,1739130641427,-622.63,0.00010273,2]
[352473666,1739130641438,-617.22,0.00010273,2]
[352473668,1739130641449,-500.0,0.00010273,2]
[352473670,1739130641459,-849.26,0.00010273,2]
[352473672,1739130641469,-500.0,0.00010273,2]
[352473674,1739130641481,-980.02,0.00010273,2]
[352473676,1739130641492,-500.0,0.00010273,2]
[352473678,1739130641502,-500.0,0.00010273,2]
[352473680,1739130641512,-500.0,0.00010273,2]
[352473683,1739130641523,-1303.93,0.00010273,2]
[352473685,1739130641534,-677.21,0.00010273,2]
[352473687,1739130641545,-500.0,0.00010273,2]
[352473689,1739130641556,-621.58,0.00010273,2]
[352473691,1739130641567,-500.0,0.00010273,2]
[352473693,1739130641578,-500.0,0.00010273,2]
[352473696,1739130641590,-540.57,0.00010273,2]
[352473698,1739130641601,-500.0,0.00010273,2]
[352473700,1739130641613,-401.44,0.00010273,2]
[352473702,1739130641625,-215.56,0.00010273,2]
[352473704,1739130641636,-584.15,0.00010273,2]
[352473706,1739130641647,-500.0,0.00010273,2]
[352473709,1739130641657,-500.0,0.00010273,2]
[352473711,1739130641668,-500.0,0.00010273,2]
[352473712,1739130641679,-1219.09,0.00010273,2]
[352473713,1739130641691,-500.0,0.00010273,2]
[352473714,1739130641702,-500.0,0.00010273,2]
[352473715,1739130641713,-623.06,0.00010273,2]
[352473716,1739130641724,-745.03,0.00010273,2]
[352473717,1739130641735,-500.0,0.00010273,2]
[352473718,1739130641747,-500.0,0.00010273,2]
[352473719,1739130641758,-500.0,0.00010273,2]
[352473720,1739130641769,-500.0,0.00010273,2]
[352473721,1739130641780,-500.0,0.00010273,2]
[352473722,1739130641791,-500.0,0.00010273,2]
[352473723,1739130641802,-500.0,0.00010273,2]
[352473724,1739130641812,-500.0,0.00010273,2]
[352473725,1739130641824,-630.33,0.00010273,2]
[352473726,1739130641834,-500.0,0.00010273,2]
[352473727,1739130641845,-2246.07,0.00010273,2]
[352473728,1739130641856,-500.0,0.00010273,2]
[352473729,1739130641866,-500.0,0.00010273,2]
[352473730,1739130641877,-685.95,0.00010273,2]
[352473731,1739130641888,-500.0,0.00010273,2]
[352473732,1739130641903,-500.0,0.00010273,2]
[352473733,1739130641914,-500.0,0.00010273,2]
[352473734,1739130641926,-500.0,0.00010273,2]
[352473735,1739130641940,-500.0,0.00010273,2]
[352473736,1739130641951,-500.0,0.00010273,2]
[352473737,1739130641961,-150.0,0.00010273,2]
[352473738,1739130641974,-150.0,0.00010273,2]
[352473739,1739130641984,-225.54,0.00010273,2]
[352473740,1739130641994,-778.0,0.00010273,2]
[352473741,1739130642004,-500.0,0.00010273,2]
[352473742,1739130642013,-543.13,0.00010273,2]
[352473743,1739130642023,-366.0,0.000103,2]
[352473744,1739130642032,-312.0,0.000103,2]
[352473745,1739130642042,-231.0,0.000103,2]
[352473746,1739130642051,-500.0,0.000103,2]
[352473747,1739130642060,-200.0,0.000103,2]
[352473748,1739130642069,-778.0,0.000103,2]
[352473749,1739130642080,-384.54681952,0.00010324,2]
[352473750,1739130642090,-500.0,0.00010328,2]
[352473751,1739130642099,-778.0,0.00010328,2]
[352473752,1739130642108,-500.0,0.00010355,2]
[352473753,1739130642117,-778.0,0.00010355,2]
[352473754,1739130642126,-500.0,0.00010383,2]
[352473755,1739130642136,-778.0,0.00010383,2]
[352473756,1739130642146,-1000.0,0.00010388,2]
[352473757,1739130642157,-1073.03,0.00010406,2]
[352473758,1739130642168,-500.0,0.00010409,2]
[352473759,1739130642178,-500.0,0.00010409,2]
[352473760,1739130642188,-500.0,0.00010409,2]
[352473761,1739130642452,-500.0,0.00010409,2]
[352473762,1739130642475,-500.0,0.00010409,2]
[352473763,1739130642489,-500.0,0.00010409,2]
[352473764,1739130642499,-500.0,0.00010409,2]
[352473765,1739130642508,-500.0,0.00010409,2]
[352473766,1739130642517,-642.43,0.00010409,2]
[352473767,1739130642527,-500.0,0.00010409,2]
[352473768,1739130642536,-500.0,0.00010409,2]
[352473769,1739130642546,-528.97,0.00010409,2]
[352473770,1739130642555,-500.0,0.00010409,2]
[352473771,1739130642565,-500.0,0.00010409,2]
[352473772,1739130642574,-500.0,0.00010409,2]
[352473773,1739130642583,-500.0,0.00010409,2]
[352473774,1739130642593,-574.86,0.00010409,2]
[352473775,1739130642603,-406.02686,0.00010409,2]
[352473776,1739130642612,-500.0,0.00010409,2]
[352473777,1739130642621,-500.0,0.00010409,2]
[352473778,1739130642631,-500.0,0.00010409,2]
[352473779,1739130642640,-500.0,0.0001041,2]
[352473780,1739130642649,-778.0,0.0001041,2]
[352473781,1739130642659,-581.85,0.0001041,2]
[352473782,1739130642670,-500.0,0.0001041,2]
[352473783,1739130642679,-957.84,0.0001041,2]
[352473784,1739130642689,-500.0,0.0001041,2]
[352473785,1739130642700,-500.0,0.0001041,2]
[352473786,1739130642710,-500.0,0.0001041,2]
[352473787,1739130642719,-500.0,0.0001041,2]
[352473788,1739130642729,-500.0,0.0001041,2]
[352473789,1739130642738,-500.0,0.0001041,2]
[352473790,1739130642748,-500.0,0.0001041,2]
[352473791,1739130642757,-722.33,0.0001041,2]
[352473792,1739130642767,-500.0,0.0001041,2]
[352473793,1739130642777,-500.0,0.0001041,2]
[352473794,1739130642786,-500.0,0.0001041,2]
[352473795,1739130642795,-611.76,0.0001041,2]
[352473796,1739130642805,-500.0,0.0001041,2]
[352473797,1739130642814,-500.0,0.0001041,2]
[352473798,1739130642823,-500.0,0.0001041,2]
[352473799,1739130642833,-500.0,0.0001041,2]
[352473800,1739130642843,-500.0,0.0001041,2]
[352473801,1739130642852,-500.0,0.0001041,2]
[352473802,1739130642861,-500.0,0.0001041,2]
[352473803,1739130642871,-500.0,0.0001041,2]
[352473804,1739130642881,-500.0,0.0001041,2]
[352473805,1739130642892,-500.0,0.0001041,2]
[352473806,1739130642904,-500.0,0.0001041,2]
[352473808,1739130642913,-500.0,0.0001041,2]
[352473809,1739130642923,-500.0,0.0001041,2]
[352473810,1739130642932,-500.0,0.0001041,2]
[352473811,1739130642942,-500.0,0.0001041,2]
[352473812,1739130642952,-210.81847342,0.0001041,2]
[352473813,1739130642961,-714.58,0.0001041,2]
[352473814,1739130642972,-357.86,0.0001041,2]
[352473815,1739130642981,-500.0,0.0001041,2]
[352473816,1739130642991,-500.0,0.0001041,2]
[352473817,1739130642999,-608.5,0.0001041,2]
[352473818,1739130643009,-500.0,0.0001041,2]
[352473819,1739130643019,-500.0,0.0001041,2]
[352473821,1739130643028,-500.0,0.0001041,2]
[352473823,1739130643037,-500.0,0.0001041,2]
[352473824,1739130643047,-500.0,0.0001041,2]
[352473825,1739130643056,-500.0,0.0001041,2]
[352473826,1739130643066,-500.0,0.0001041,2]
[352473827,1739130643075,-500.0,0.0001041,2]
[352473828,1739130643085,-500.0,0.0001041,2]
[352473829,1739130643095,-500.0,0.0001041,2]
[352473830,1739130643104,-381.451289,0.0001041,2]
[352473831,1739130643113,-631.5,0.0001041,2]
[352473834,1739130643123,-905.78,0.0001041,2]
[352473837,1739130643132,-500.0,0.0001041,2]
[352473840,1739130643141,-500.0,0.0001041,2]
[352473843,1739130643151,-500.0,0.0001041,2]
[352473845,1739130643160,-500.0,0.0001041,2]
[352473847,1739130643171,-594.22298229,0.0001041,2]
[352473849,1739130643180,-500.0,0.0001041,2]
[352473851,1739130643190,-622.63,0.0001041,2]
[352473852,1739130643200,-617.22,0.0001041,2]
[352473854,1739130643215,-500.0,0.0001041,2]
[352473856,1739130643226,-849.26,0.0001041,2]
[352473858,1739130643236,-500.0,0.0001041,2]
[352473860,1739130643246,-980.02,0.0001041,2]
[352473862,1739130643257,-500.0,0.0001041,2]
[352473864,1739130643266,-500.0,0.0001041,2]
[352473866,1739130643276,-181.93261139,0.0001041,2]
[352473868,1739130643285,-1303.93,0.0001041,2]
[352473870,1739130643295,-500.0,0.0001041,2]
[352473871,1739130643304,-677.21,0.0001041,2]
[352473872,1739130643313,-621.58,0.0001041,2]
[352473873,1739130643323,-500.0,0.0001041,2]
[352473874,1739130643333,-500.0,0.0001041,2]
[352473875,1739130643343,-540.57,0.0001041,2]
[352473876,1739130643352,-500.0,0.0001041,2]
[352473877,1739130643362,-584.15,0.0001041,2]
[352473878,1739130643372,-500.0,0.0001041,2]
[352473879,1739130643381,-500.0,0.0001041,2]
[352473880,1739130643391,-500.0,0.0001041,2]
[352473881,1739130643400,-1219.09,0.0001041,2]
[352473882,1739130643410,-500.0,0.0001041,2]
[352473883,1739130643422,-500.0,0.0001041,2]
[352473884,1739130643432,-745.03,0.0001041,2]
[352473885,1739130643441,-296.76,0.0001041,2]
[352473886,1739130643451,-500.0,0.0001041,2]
[352473887,1739130643460,-500.0,0.0001041,2]
[352473888,1739130643470,-500.0,0.0001041,2]
[352473889,1739130643480,-500.0,0.0001041,2]
[352473890,1739130643489,-500.0,0.0001041,2]
[352473891,1739130643499,-500.0,0.0001041,2]
[352473892,1739130643509,-500.0,0.0001041,2]
[352473893,1739130643518,-630.33,0.0001041,2]
[352473894,1739130643528,-585.92,0.0001041,2]
[352473895,1739130643538,-2246.07,0.0001041,2]
[352473896,1739130643548,-500.0,0.0001041,2]
[352473897,1739130643557,-541.01,0.0001041,2]
[352473899,1739130643567,-685.95,0.0001041,2]
[352473901,1739130643576,-500.0,0.0001041,2]
[352473903,1739130643585,-500.0,0.0001041,2]
[352473905,1739130643594,-370.87,0.0001041,2]
[352473907,1739130643604,-500.0,0.0001041,2]
[352473909,1739130643614,-500.0,0.0001041,2]
[352473912,1739130643624,-500.0,0.0001041,2]
[352473914,1739130643633,-543.13,0.0001041,2]
[352473915,1739130643643,-1059.0,0.00010411,2]
[352473918,1739130643653,-799.25,0.00010437,2]
[352473919,1739130643662,-500.0,0.00010437,2]
[352473923,1739130643674,-778.0,0.00010437,2]
[352473925,1739130643683,-233.59369082,0.00010447,2]
[352473928,1739130643693,-272.05767542,0.00010447,2]
[352473930,1739130643702,-17154.19430385,0.00010447,2]
[352473932,1739130643712,-4001.27017891,0.00010447,2]
[352473933,1739130643721,-635.49949673,0.00010463,2]
[352473935,1739130643730,-500.0,0.00010465,2]
[352473937,1739130643739,-778.0,0.00010465,2]
[352473939,1739130643749,-500.0,0.00010492,2]
[352473941,1739130643759,-778.0,0.00010492,2]
[352473943,1739130643768,-634.161,0.0001052,2]
[352473945,1739130643778,-778.0,0.0001052,2]
[352473947,1739130643787,-1009.32999585,0.00010521,2]
[352473949,1739130643796,-382.66,0.00010537,2]
[352473951,1739130643806,-500.0,0.00010546,2]
[352473953,1739130643815,-500.0,0.00010546,2]
[352473955,1739130643825,-500.0,0.00010546,2]
[352473957,1739130643834,-500.0,0.00010546,2]
[352473959,1739130643843,-500.0,0.00010546,2]
[352473961,1739130643853,-500.0,0.00010546,2]
[352473963,1739130643862,-500.0,0.00010546,2]
[352473965,1739130643871,-500.0,0.00010546,2]
[352473967,1739130643881,-642.43,0.00010546,2]
[352473969,1739130643891,-500.0,0.00010546,2]
[352473971,1739130643902,-505.03,0.00010546,2]
[352473973,1739130643911,-528.97,0.00010546,2]
[352473974,1739130643922,-500.0,0.00010546,2]
[352473975,1739130643932,-500.0,0.00010546,2]
[352473976,1739130643942,-500.0,0.00010546,2]
[352473977,1739130643951,-500.0,0.00010546,2]
[352473978,1739130643960,-574.86,0.00010546,2]
[352473979,1739130643969,-406.02686,0.00010546,2]
[352473980,1739130643979,-500.0,0.00010546,2]
[352473981,1739130643989,-500.0,0.00010546,2]
[352473982,1739130643998,-500.0,0.00010546,2]
[352473983,1739130644007,-778.0,0.00010547,2]
[352473984,1739130644016,-500.0,0.00010547,2]
[352473985,1739130644026,-957.84,0.00010547,2]
[352473986,1739130644035,-500.0,0.00010547,2]
[352473987,1739130644045,-530.42,0.00010547,2]
[352473988,1739130644054,-500.0,0.00010547,2]
[352473989,1739130644064,-500.0,0.00010547,2]
[352473990,1739130644075,-500.0,0.00010547,2]
[352473991,1739130644086,-500.0,0.00010547,2]
[352473992,1739130644095,-500.0,0.00010547,2]
[352473993,1739130644105,-722.33,0.00010547,2]
[352473994,1739130644115,-500.0,0.00010547,2]
[352473995,1739130644124,-500.0,0.00010547,2]
[352473996,1739130644134,-500.0,0.00010547,2]
[352473997,1739130644143,-500.0,0.00010547,2]
[352473998,1739130644152,-225.29,0.00010547,2]
[352473999,1739130644161,-500.0,0.00010547,2]
[352474000,1739130644171,-320.96,0.00010547,2]
[352474001,1739130644181,-500.0,0.00010547,2]
[352474002,1739130644190,-301.77,0.00010547,2]
[352474003,1739130644199,-500.0,0.00010547,2]
[352474004,1739130644210,-417.59,0.00010547,2]
[352474005,1739130644222,-623.50170275,0.00010547,2]
[352474006,1739130644231,-500.0,0.00010547,2]
[352474007,1739130644240,-569.66,0.00010547,2]
[352474008,1739130644249,-500.0,0.00010547,2]
[352474009,1739130644259,-637.9,0.00010547,2]
[352474010,1739130644267,-500.0,0.00010547,2]
[352474011,1739130644276,-714.58,0.00010547,2]
[352474012,1739130644285,-500.0,0.00010547,2]
[352474013,1739130644294,-500.0,0.00010547,2]
[352474014,1739130644305,-608.5,0.00010547,2]
[352474015,1739130644315,-500.0,0.00010547,2]
[352474016,1739130644325,-500.0,0.00010547,2]
[352474017,1739130644337,-500.0,0.00010547,2]
[352474018,1739130644347,-500.0,0.00010547,2]
[352474019,1739130644358,-500.0,0.00010547,2]
[352474020,1739130644367,-544.72,0.00010547,2]
[352474021,1739130644378,-500.0,0.00010547,2]
[352474022,1739130644387,-500.0,0.00010547,2]
[352474023,1739130644397,-500.0,0.00010547,2]
[352474024,1739130644406,-500.0,0.00010547,2]
[352474025,1739130644419,-381.451289,0.00010547,2]
[352474026,1739130644428,-631.5,0.00010547,2]
[352474027,1739130644437,-905.78,0.00010547,2]
[352474028,1739130644447,-500.0,0.00010547,2]
[352474029,1739130644457,-500.0,0.00010547,2]
[352474030,1739130644467,-500.0,0.00010547,2]
[352474031,1739130644476,-500.0,0.00010547,2]
[352474032,1739130644486,-500.0,0.00010547,2]
[352474033,1739130644496,-622.63,0.00010547,2]
[352474034,1739130644505,-617.22,0.00010547,2]
[352474035,1739130644519,-500.0,0.00010547,2]
[352474036,1739130644529,-849.26,0.00010547,2]
[352474037,1739130644539,-500.0,0.00010547,2]
[352474038,1739130644548,-980.02,0.00010547,2]
[352474039,1739130644557,-500.0,0.00010547,2]
[352474040,1739130644567,-500.0,0.00010547,2]
[352474041,1739130644577,-1303.93,0.00010547,2]
[352474042,1739130644590,-500.0,0.00010547,2]
[352474043,1739130644600,-677.21,0.00010547,2]
[352474044,1739130644609,-621.58,0.00010547,2]
[352474045,1739130644618,-500.0,0.00010547,2]
[352474046,1739130644628,-413.19,0.00010547,2]
[352474047,1739130644638,-540.57,0.00010547,2]
[352474048,1739130644647,-500.0,0.00010547,2]
[352474049,1739130644657,-584.15,0.00010547,2]
[352474050,1739130644666,-500.0,0.00010547,2]
[352474051,1739130644676,-500.0,0.00010547,2]
[352474052,1739130644686,-500.0,0.00010547,2]
[352474053,1739130644695,-1219.09,0.00010547,2]
[352474054,1739130644704,-500.0,0.00010547,2]
[352474055,1739130644714,-500.0,0.00010547,2]
[352474056,1739130644723,-745.03,0.00010547,2]
[352474057,1739130644735,-500.0,0.00010547,2]
[352474058,1739130644746,-500.0,0.00010547,2]
[352474059,1739130644755,-500.0,0.00010547,2]
[352474060,1739130644765,-500.0,0.00010547,2]
[352474061,1739130644775,-500.0,0.00010547,2]
[352474062,1739130644784,-500.0,0.00010547,2]
[352474063,1739130644794,-500.0,0.00010547,2]
[352474064,1739130644804,-630.33,0.00010547,2]
[352474065,1739130644814,-2246.07,0.00010547,2]
[352474066,1739130644823,-500.0,0.00010547,2]
[352474067,1739130644832,-685.95,0.00010547,2]
[352474068,1739130644842,-500.0,0.00010547,2]
[352474069,1739130644851,-500.0,0.00010547,2]
[352474070,1739130644860,-181.97,0.00010547,2]
[352474071,1739130644870,-500.0,0.00010547,2]
[352474072,1739130644879,-500.0,0.00010547,2]
[352474073,1739130644889,-543.13,0.00010547,2]
[352474074,1739130644900,-384.54681952,0.00010559,2]
[352474075,1739130644910,-778.0,0.00010574,2]
[352474076,1739130644920,-778.0,0.00010602,2]
[352474077,1739130644930,-778.0,0.00010629,2]
[352474078,1739130644939,-778.0,0.00010657,2]
[352474079,1739130644948,-1721.164541,0.00010677,2]
[352474080,1739130644959,-500.0,0.00010683,2]
[352474081,1739130644969,-500.0,0.00010683,2]
[352474082,1739130644979,-500.0,0.00010683,2]
[352474083,1739130644988,-500.0,0.00010683,2]
[352474084,1739130644998,-410.14,0.00010683,2]
[352474085,1739130645007,-500.0,0.00010683,2]
[352474086,1739130645018,-500.0,0.00010683,2]
[352474087,1739130645027,-500.0,0.00010683,2]
[352474088,1739130645037,-642.43,0.00010683,2]
[352474089,1739130645046,-500.0,0.00010683,2]
[352474090,1739130645056,-528.97,0.00010683,2]
[352474091,1739130645066,-500.0,0.00010683,2]
[352474092,1739130645076,-500.0,0.00010683,2]
[352474093,1739130645085,-500.0,0.00010683,2]
[352474094,1739130645096,-1073.03,0.00010683,2]
[352474095,1739130645106,-500.0,0.00010683,2]